bitfinex-derivatives/quotes_BTCF0:USTF0_20250417
["timestamp","ask_amount","ask_price","bid_price","bid_amount"]
[1744862602296,0.00019684,84044.0,84043.0,0.5107962]
[1744862602493,0.00019684,84044.0,84043.0,0.5409962]
[1744862602892,0.00419684,84044.0,84043.0,0.5409962]
[1744862603504,0.00619684,84044.0,84043.0,0.5409962]
[1744862603709,0.12519164,84044.0,84043.0,0.5409962]
[1744862604098,0.00419684,84044.0,84043.0,0.5409962]
[1744862604401,0.00119684,84044.0,84043.0,0.5409962]
[1744862604601,0.00319684,84044.0,84043.0,0.5409962]
[1744862605008,0.00119684,84044.0,84043.0,0.5409962]
[1744862605207,0.00219684,84044.0,84043.0,0.5409962]
[1744862606506,0.002,84044.0,84043.0,0.5409962]
[1744862606703,0.00208,84044.0,84043.0,0.5409962]
[1744862609400,0.1210748,84044.0,84043.0,0.5409962]
[1744862610907,0.1209948,84044.0,84043.0,0.5409962]
[1744862611308,0.1528948,84044.0,84043.0,0.5409962]
[1744862615799,0.0594879,84058.0,84051.0,0.1189849]
[1744862616013,0.1509819,84054.0,84053.0,0.1189806]
[1744862617509,0.1510619,84054.0,84053.0,0.1189806]
[1744862617710,0.1540619,84054.0,84053.0,0.1189806]
[1744862617910,0.1590619,84054.0,84053.0,0.0964806]
[1744862620107,0.1899619,84054.0,84053.0,0.0964806]
[1744862620819,0.1898819,84054.0,84053.0,0.0964806]
[1744862624815,0.1848819,84054.0,84053.0,0.0964806]
[1744862625019,0.1868819,84054.0,84053.0,0.0964806]
[1744862625415,0.1848819,84054.0,84053.0,0.0964806]
[1744862626023,0.1818819,84054.0,84053.0,0.0964806]
[1744862626217,0.1828819,84054.0,84053.0,0.0964806]
[1744862626824,0.1818819,84054.0,84053.0,0.0964806]
[1744862632126,0.1818819,84054.0,84053.0,0.1265806]
[1744862632825,0.1509819,84054.0,84053.0,0.1265806]
[1744862633422,0.1834819,84054.0,84053.0,0.1265806]
[1744862635016,0.1834819,84054.0,84053.0,0.0964806]
[1744862635824,0.1834819,84054.0,84053.0,0.1282806]
[1744862637818,0.0645,84054.0,84053.0,0.1282806]
[1744862638018,0.0594764,84074.0,84053.0,0.1282806]
[1744862638019,0.0594784,84071.0,84061.0,0.1189707]
[1744862638313,0.1189669,84064.0,84061.0,0.1189707]
[1744862638519,0.00025851,84062.0,84061.0,0.1189707]
[1744862638832,0.00025851,84062.0,84061.0,0.1500707]
[1744862639332,0.00225851,84062.0,84061.0,0.1500707]
[1744862639523,0.00225851,84062.0,84061.0,0.1826707]
[1744862639725,0.12122781,84062.0,84061.0,0.1826707]
[1744862640118,0.12422781,84062.0,84061.0,0.1826707]
[1744862640318,0.18912781,84062.0,84061.0,0.1826707]
[1744862641330,0.07015851,84062.0,84060.0,0.3608]
[1744862641626,0.1189707,84061.0,84060.0,0.3608]
[1744862642029,0.1189806,84054.0,84052.0,0.3608]
[1744862642429,0.1189806,84054.0,84053.0,0.11916051]
[1744862642816,0.1803806,84054.0,84053.0,0.11916051]
[1744862643021,0.1803806,84054.0,84048.0,0.0900942]
[1744862643022,0.1189919,84046.0,84045.0,0.3608]
[1744862643429,0.1189919,84046.0,84045.0,0.4797933]
[1744862643830,0.1493919,84046.0,84045.0,0.4797933]
[1744862644022,0.1803919,84046.0,84045.0,0.4797933]
[1744862644223,0.1823919,84046.0,84045.0,0.4797933]
[1744862644929,0.033,84046.0,84045.0,0.4797933]
[1744862645129,0.1520719,84046.0,84045.0,0.5122933]
[1744862645330,0.1500719,84046.0,84045.0,0.5122933]
[1744862645631,0.1510719,84046.0,84045.0,0.5122933]
[1744862646027,0.1500719,84046.0,84045.0,0.5142933]
[1744862646332,0.1812719,84046.0,84045.0,0.5142933]
[1744862648534,0.1812719,84046.0,84045.0,0.5152933]
[1744862659830,8e-05,84046.0,84045.0,0.5152933]
[1744862660035,0.0307,84053.0,84052.0,0.1189834]
[1744862660243,0.0307,84053.0,84052.0,0.4797834]
[1744862660444,0.149682,84053.0,84052.0,0.4797834]
[1744862660647,0.149762,84053.0,84052.0,0.5448834]
[1744862662149,0.03078,84053.0,84052.0,0.5448834]
[1744862664348,8e-05,84053.0,84052.0,0.5448834]
[1744862664840,0.118977,84057.0,84052.0,0.4259]
[1744862665035,0.118977,84057.0,84056.0,0.1189778]
[1744862665848,0.118977,84057.0,84056.0,0.1839778]
[1744862666053,0.119977,84057.0,84056.0,0.1839778]
[1744862666244,0.120977,84057.0,84056.0,0.1839778]
[1744862666445,0.153477,84057.0,84056.0,0.1839778]
[1744862670056,0.153477,84057.0,84056.0,0.1513778]
[1744862682571,0.153477,84057.0,84056.0,0.0324]
[1744862682760,0.1189778,84056.0,84055.0,0.4797783]
[1744862682964,0.1504778,84056.0,84055.0,0.4797783]
[1744862683968,0.1514778,84056.0,84055.0,0.4797783]
[1744862689968,0.1514778,84056.0,84055.0,0.1189783]
[1744862690174,0.1514778,84056.0,84055.0,0.4797783]
[1744862693879,0.1514778,84056.0,84055.0,0.5101783]
[1744862694678,0.1514778,84056.0,84055.0,0.5111783]
[1744862694979,0.1504778,84056.0,84055.0,0.5121783]
[1744862695479,0.1504778,84056.0,84055.0,0.5111783]
[1744862695779,0.1504778,84056.0,84055.0,0.5121783]
[1744862696278,0.1504778,84056.0,84055.0,0.5111783]
[1744862696471,0.1504778,84056.0,84055.0,0.5121783]
[1744862698075,0.1504778,84056.0,84055.0,0.5111783]
[1744862698282,0.1504778,84056.0,84055.0,0.5121783]
[1744862717095,0.1504778,84056.0,84055.0,0.3932]
[1744862717284,0.1504778,84056.0,84055.0,0.3628]
[1744862717883,0.1504778,84056.0,84055.0,0.3618]
[1744862718095,0.1504778,84056.0,84055.0,0.3628]
[1744862718292,0.3480778,84056.0,84055.0,0.3618]
[1744862718598,0.1524778,84056.0,84055.0,0.3618]
[1744862719494,0.1524778,84056.0,84055.0,0.001]
[1744862720086,0.1524778,84056.0,84046.0,0.0307]
[1744862720087,0.0335,84056.0,84046.0,0.1496917]
[1744862720286,0.1189905,84047.0,84046.0,0.1496917]
[1744862721198,0.1824905,84047.0,84046.0,0.1496917]
[1744862721902,0.1824905,84047.0,84046.0,0.1516917]
[1744862722985,0.1824905,84047.0,84046.0,0.1506917]
[1744862723691,0.1824905,84047.0,84046.0,0.1806917]
[1744862724096,0.1824905,84047.0,84046.0,0.1796917]
[1744862725704,0.1189905,84047.0,84046.0,0.1796917]
[1744862725896,0.1189905,84047.0,84046.0,0.1806917]
[1744862726202,0.1190705,84047.0,84046.0,0.1806917]
[1744862727695,0.1190705,84047.0,84046.0,0.1826917]
[1744862728197,0.1190705,84047.0,84046.0,0.1816917]
[1744862728392,0.1190705,84047.0,84046.0,0.1846917]
[1744862728907,0.1190705,84047.0,84046.0,0.5454917]
[1744862730089,0.1190705,84047.0,84046.0,0.5444917]
[1744862731498,0.1190705,84047.0,84046.0,0.5424917]
[1744862731702,0.1190705,84047.0,84046.0,0.5434917]
[1744862732602,0.1190705,84047.0,84046.0,0.1826917]
[1744862732807,0.1190705,84047.0,84046.0,0.5434917]
[1744862734397,0.1190705,84047.0,84046.0,0.5424917]
[1744862734597,0.1190705,84047.0,84046.0,0.5434917]
[1744862735007,0.1190705,84047.0,84046.0,0.5424917]
[1744862736995,0.1190705,84047.0,84046.0,0.5414917]
[1744862737200,0.1190705,84047.0,84046.0,0.5424917]
[1744862737602,0.1190705,84047.0,84046.0,0.5414917]
[1744862738003,0.1190705,84047.0,84046.0,0.5424917]
[1744862740002,0.1520705,84047.0,84046.0,0.5424917]
[1744862740705,0.1520705,84047.0,84046.0,0.4235]
[1744862740909,0.1520705,84047.0,84046.0,0.3935]
[1744862741702,0.1520705,84047.0,84046.0,0.3925]
[1744862741903,0.1520705,84047.0,84046.0,0.3935]
[1744862742401,0.1520705,84047.0,84046.0,0.3925]
[1744862743199,0.1520705,84047.0,84046.0,0.0317]
[1744862743400,0.1520705,84047.0,84046.0,0.0307]
[1744862744106,0.1520705,84047.0,84046.0,0.1496919]
[1744862746010,0.1520705,84047.0,84044.0,0.0594972]
[1744862746011,0.1189933,84045.0,84044.0,0.0594972]
[1744862746507,0.1189933,84045.0,84044.0,0.0908972]
[1744862746705,0.1496933,84045.0,84044.0,0.0908972]
[1744862748510,0.1189933,84045.0,84044.0,0.0908972]
[1744862748712,0.1189933,84045.0,84044.0,0.1547972]
[1744862750406,0.1189933,84045.0,84044.0,0.1557972]
[1744862750806,0.1189933,84045.0,84044.0,0.1567972]
[1744862751214,0.1189933,84045.0,84044.0,0.5175972]
[1744862752516,0.1189933,84045.0,84044.0,0.5165972]
[1744862752717,0.1189933,84045.0,84044.0,0.5175972]
[1744862754711,0.1190733,84045.0,84044.0,0.5175972]
[1744862755919,0.1516733,84045.0,84044.0,0.5175972]
[1744862756516,0.1516733,84045.0,84044.0,0.5185972]
[1744862757227,0.1516733,84045.0,84044.0,0.5175972]
[1744862761218,0.1516733,84045.0,84044.0,0.1567972]
[1744862761419,0.1516733,84045.0,84044.0,0.5175972]
[1744862766931,0.1516733,84045.0,84044.0,0.4536972]
[1744862768234,0.1526733,84045.0,84044.0,0.4526972]
[1744862768936,0.1516733,84045.0,84044.0,0.4526972]
[1744862769532,0.1516733,84045.0,84044.0,0.4516972]
[1744862770036,0.1516733,84045.0,84044.0,0.4526972]
[1744862771231,0.1616733,84045.0,84044.0,0.3618]
[1744862771829,0.1190033,84038.0,84037.0,0.00059233]
[1744862772031,0.1190033,84038.0,84037.0,0.00051233]
[1744862772032,0.4898033,84038.0,84037.0,0.00051233]
[1744862772232,0.4898033,84038.0,84037.0,0.00059233]
[1744862772438,0.0595078,84030.0,84023.0,0.01]
[1744862772737,0.0595114,84025.0,84024.0,0.00048427]
[1744862772939,0.1190259,84022.0,84021.0,0.1812454]
[1744862773240,0.1290259,84022.0,84021.0,0.1812454]
[1744862773837,0.1290259,84022.0,84021.0,0.1813254]
[1744862774138,0.14071733,84022.0,84021.0,0.1813254]
[1744862774750,0.14071733,84022.0,84021.0,8e-05]
[1744862775139,0.1290259,84022.0,84021.0,8e-05]
[1744862775641,0.1290259,84022.0,84021.0,0.00108]
[1744862777343,0.1290259,84022.0,84021.0,0.001]
[1744862777753,0.1290259,84022.0,84021.0,0.00108]
[1744862778049,0.1290259,84022.0,84021.0,0.001]
[1744862778447,0.1290259,84022.0,84021.0,0.00108]
[1744862779747,0.0595137,84021.0,84015.0,0.0001458]
[1744862779941,0.1190472,84007.0,84006.0,0.03]
[1744862780248,0.1190514,84004.0,84001.0,0.1190556]
[1744862780557,0.1190543,84002.0,84001.0,0.1190556]
[1744862780755,0.1290543,84002.0,84001.0,0.11932132]
[1744862780959,0.1290543,84002.0,84001.0,0.1190556]
[1744862781156,0.1290543,84002.0,84001.0,0.1191356]
[1744862781351,0.1290543,84002.0,84001.0,0.1190556]
[1744862781650,0.1617543,84002.0,84001.0,0.1230556]
[1744862782755,0.1617543,84002.0,84001.0,0.1300556]
[1744862782756,0.1627543,84002.0,84001.0,0.1300556]
[1744862782955,0.1627543,84002.0,84001.0,0.1633556]
[1744862783352,0.1300543,84002.0,84001.0,0.1633556]
[1744862786368,0.1190483,84007.0,84006.0,0.1190486]
[1744862786559,0.0595224,84009.0,84008.0,0.1190458]
[1744862786860,0.0595224,84009.0,84008.0,0.4798458]
[1744862787259,0.0595224,84009.0,84008.0,0.5432458]
[1744862788359,0.0595224,84009.0,84008.0,0.5452458]
[1744862788961,0.0605224,84009.0,84008.0,0.5502458]
[1744862790155,0.0907224,84009.0,84008.0,0.5502458]
[1744862790552,0.1235224,84009.0,84008.0,0.5502458]
[1744862792555,0.1235224,84009.0,84008.0,0.1894458]
[1744862792756,0.1235224,84009.0,84008.0,0.5502458]
[1744862793860,0.0907224,84009.0,84008.0,0.5502458]
[1744862796066,0.0907224,84009.0,84008.0,0.1894458]
[1744862796268,0.0907224,84009.0,84008.0,0.5502458]
[1744862796969,0.0605224,84009.0,84008.0,0.5502458]
[1744862799164,0.0911224,84009.0,84008.0,0.5502458]
[1744862801971,0.1238224,84009.0,84008.0,0.5502458]
[1744862802173,0.1238224,84009.0,84008.0,0.4312]
[1744862802373,0.1567224,84009.0,84008.0,0.5502458]
[1744862804371,0.1567224,84009.0,84008.0,0.1894458]
[1744862804580,0.1567224,84009.0,84008.0,0.5502458]
[1744862804875,0.1238224,84009.0,84008.0,0.5502458]
[1744862805175,0.0911224,84009.0,84008.0,0.5502458]
[1744862809075,0.0331,84016.0,84009.0,0.059522]
[1744862809076,0.0595193,84013.0,84009.0,0.059522]
[1744862809372,0.4709067,84031.0,84009.0,0.059522]
[1744862809373,0.0595053,84033.0,84021.0,0.1190273]
[1744862809575,8e-05,84024.0,84021.0,0.491963]
[1744862809871,0.0307,84028.0,84021.0,0.4798273]
[1744862809872,0.1190248,84023.0,84021.0,0.4798273]
[1744862810073,0.11951967,84022.0,84021.0,0.5431273]
[1744862810278,0.11951967,84022.0,84021.0,0.3916]
[1744862810481,0.11951967,84022.0,84021.0,0.39168]
[1744862810667,0.11951967,84022.0,84021.0,0.5107073]
[1744862810975,0.18181967,84022.0,84021.0,0.5117073]
[1744862819981,0.18181967,84022.0,84021.0,0.1509073]
[1744862822780,0.18181967,84022.0,84021.0,0.03188]
[1744862824686,0.18181967,84022.0,84021.0,0.1509073]
[1744862826681,0.18181967,84022.0,84021.0,0.03188]
[1744862826881,0.18181967,84022.0,84021.0,0.001]
[1744862827079,0.18181967,84022.0,84021.0,0.00108]
[1744862827387,0.18181967,84022.0,84021.0,0.001]
[1744862827574,0.18181967,84022.0,84021.0,0.00108]
[1744862827981,0.18181967,84022.0,84021.0,0.001]
[1744862828177,0.18181967,84022.0,84021.0,0.00108]
[1744862828479,0.1190373,84014.0,84013.0,0.00017851]
[1744862829487,0.1825373,84014.0,84013.0,0.00017851]
[1744862830281,0.1825373,84014.0,84013.0,3.438e-05]
[1744862830688,0.1825373,84014.0,84013.0,0.00103438]
[1744862830982,0.1825373,84014.0,84013.0,0.00503438]
[1744862833083,0.5433373,84014.0,84013.0,0.00511438]
[1744862835192,0.1190443,84009.0,84008.0,0.3608]
[1744862835688,0.1190443,84009.0,84008.0,0.36088]
[1744862835884,0.1190443,84009.0,84008.0,0.3608]
[1744862836084,0.1830443,84009.0,84008.0,0.36088]
[1744862836390,0.1830443,84009.0,84008.0,0.36288]
[1744862837491,0.1840443,84009.0,84008.0,0.36688]
[1744862837685,0.19580903,84009.0,84008.0,0.36688]
[1744862840294,0.19580903,84009.0,84008.0,0.00608]
[1744862840795,0.19580903,84009.0,84008.0,0.006]
[1744862841494,0.1840443,84009.0,84008.0,0.006]
[1744862844705,0.1190684,83992.0,83980.0,0.6024606]
[1744862844996,0.1190826,83982.0,83981.0,0.062]
[1744862845199,0.4898826,83982.0,83981.0,0.062]
[1744862845989,0.3708,83982.0,83981.0,0.181084]
[1744862846300,0.001,83982.0,83981.0,0.4996256]
[1744862846699,0.1200826,83982.0,83981.0,0.4996256]
[1744862846904,0.1200826,83982.0,83981.0,0.2546256]
[1744862849902,0.1200826,83982.0,83981.0,0.1355416]
[1744862852604,0.1200826,83982.0,83981.0,0.076]
[1744862853997,0.1200826,83982.0,83981.0,0.07608]
[1744862854193,0.4808826,83982.0,83981.0,0.07608]
[1744862854496,0.4808826,83982.0,83981.0,0.014]
[1744862854693,0.5138826,83982.0,83981.0,0.014]
[1744862855299,0.5138826,83982.0,83981.0,0.01208]
[1744862856000,0.5138826,83982.0,83981.0,0.012]
[1744862856204,0.5138826,83982.0,83981.0,0.01208]
[1744862857296,0.5138826,83982.0,83981.0,0.00808]
[1744862861902,0.5138826,83982.0,83981.0,0.008]
[1744862862707,0.5138826,83982.0,83981.0,0.00808]
[1744862863105,0.5138826,83982.0,83981.0,0.07198]
[1744862863106,0.4808826,83982.0,83981.0,0.07198]
[1744862863309,0.1200826,83982.0,83981.0,0.03968]
[1744862863606,0.4808826,83982.0,83981.0,0.03968]
[1744862865502,0.1200826,83982.0,83981.0,0.158764]
[1744862875519,0.001,83982.0,83981.0,0.519564]
[1744862876712,0.001,83982.0,83981.0,0.552664]
[1744862878716,0.0595371,83988.0,83987.0,0.1190755]
[1744862879522,0.0595371,83988.0,83987.0,0.1839755]
[1744862880728,0.0595371,83988.0,83987.0,0.1849755]
[1744862881221,0.0605371,83988.0,83987.0,0.1879755]
[1744862884825,0.001,83988.0,83987.0,0.1879755]
[1744862891823,0.00017851,83990.0,83989.0,0.1190727]
[1744862893828,0.00017851,83990.0,83989.0,0.1200727]
[1744862894429,0.00017851,83990.0,83989.0,0.1230727]
[1744862897626,0.03297851,83990.0,83989.0,0.1230727]
[1744862898034,0.06387851,83990.0,83989.0,0.1230727]
[1744862899036,0.06387851,83990.0,83989.0,0.1231527]
[1744862899632,0.18294981,83990.0,83989.0,0.1231527]
[1744862900440,0.18294981,83990.0,83989.0,0.1230727]
[1744862900638,0.18294981,83990.0,83989.0,0.1231527]
[1744862904335,0.06387851,83990.0,83989.0,0.1231527]
[1744862904734,0.06387851,83990.0,83989.0,0.1534527]
[1744862905247,0.06387851,83990.0,83989.0,0.1835527]
[1744862909535,0.18294981,83990.0,83989.0,0.1532527]
[1744862909940,0.18294981,83990.0,83989.0,0.1531727]
[1744862910141,0.18294981,83990.0,83989.0,0.1532527]
[1744862919251,0.06387851,83990.0,83989.0,0.1532527]
[1744862921339,0.18294981,83990.0,83989.0,0.1532527]
[1744862926448,0.18294981,83990.0,83989.0,0.00408]
[1744862926655,0.54374981,83990.0,83989.0,0.00408]
[1744862926950,0.54374981,83990.0,83989.0,0.004]
[1744862927151,0.54374981,83990.0,83989.0,0.00408]
[1744862929354,0.18294981,83990.0,83989.0,0.00408]
[1744862929658,0.90454981,83990.0,83989.0,0.00408]
[1744862930951,0.0595393,83985.0,83978.0,0.1786276]
[1744862931156,0.4798869,83979.0,83978.0,0.2091734]
[1744862931458,0.4798869,83979.0,83978.0,0.2090276]
[1744862931756,0.4798869,83979.0,83978.0,0.2091076]
[1744862932056,0.4798869,83979.0,83978.0,0.2131076]
[1744862932259,0.5441869,83979.0,83978.0,0.2151076]
[1744862933449,0.5441869,83979.0,83978.0,0.2111076]
[1744862933653,0.5451869,83979.0,83978.0,0.2161076]
[1744862933856,0.5451869,83979.0,83978.0,0.0970238]
[1744862934157,0.5451869,83979.0,83978.0,0.0980238]
[1744862935158,0.5451869,83979.0,83978.0,0.03848]
[1744862937059,0.5451869,83979.0,83978.0,0.1575683]
[1744862940260,0.1843869,83979.0,83978.0,0.1575683]
[1744862943469,0.1843869,83979.0,83978.0,0.03848]
[1744862943864,0.1843869,83979.0,83978.0,0.1575683]
[1744862950264,0.1843869,83979.0,83978.0,0.03848]
[1744862950966,0.1843869,83979.0,83978.0,0.1271683]
[1744862952278,0.1843869,83979.0,83978.0,0.00808]
[1744862952977,0.1843869,83979.0,83972.0,0.0302]
[1744862952978,0.1190954,83973.0,83972.0,0.0302]
[1744862953164,0.4798954,83973.0,83972.0,0.030308]
[1744862953666,0.4798954,83973.0,83972.0,0.000108]
[1744862953872,0.1191039,83967.0,83966.0,0.0302]
[1744862954563,0.1191053,83966.0,83964.0,0.1812454]
[1744862954768,0.5786053,83966.0,83964.0,0.1812454]
[1744862955766,0.5786053,83966.0,83965.0,0.00520115]
[1744862955966,0.5786053,83966.0,83965.0,0.00512115]
[1744862956170,0.5786053,83966.0,83965.0,0.00520115]
[1744862956367,0.5786053,83966.0,83965.0,0.00812115]
[1744862956767,0.5786053,83966.0,83965.0,0.00820115]
[1744862956974,0.5796053,83966.0,83965.0,0.01220115]
[1744862957167,0.5796053,83966.0,83965.0,0.16370785]
[1744862957572,0.5796053,83966.0,83965.0,0.16362785]
[1744862957777,0.5796053,83966.0,83965.0,0.16370785]
[1744862957973,0.5796053,83966.0,83965.0,0.04460115]
[1744862958574,0.5796053,83966.0,83965.0,0.16370785]
[1744862958784,0.5465053,83966.0,83965.0,0.16370785]
[1744862960274,0.3618,83966.0,83965.0,0.16370785]
[1744862961481,0.5394283,83982.0,83981.0,0.119084]
[1744862962981,0.5394283,83982.0,83981.0,0.120084]
[1744862963572,0.5394283,83982.0,83981.0,0.183484]
[1744862963772,0.3608,83982.0,83981.0,0.183484]
[1744862964480,0.1190777,83986.0,83985.0,0.1190784]
[1744862965083,0.1190777,83986.0,83985.0,0.1827784]
[1744862965377,0.0924373,83988.0,83987.0,0.1190755]
[1744862965578,0.1190729,83989.0,83988.0,0.1190741]
[1744862965787,0.00017851,83990.0,83989.0,0.1190727]
[1744862966581,0.00017851,83990.0,83989.0,0.1849727]
[1744862966777,0.11924981,83990.0,83989.0,0.1849727]
[1744862967284,0.12024981,83990.0,83989.0,0.1849727]
[1744862974695,0.12024981,83990.0,83989.0,0.1522727]
[1744862975294,0.15214981,83990.0,83989.0,0.1522727]
[1744862975995,0.15114981,83990.0,83989.0,0.1522727]
[1744862976294,0.15214981,83990.0,83989.0,0.1522727]
[1744862976593,0.15114981,83990.0,83989.0,0.1522727]
[1744862976793,0.15314981,83990.0,83989.0,0.1532727]
[1744862977494,0.18494981,83990.0,83989.0,0.1532727]
[1744862977687,0.18594981,83990.0,83989.0,0.1532727]
[1744862978392,0.18594981,83990.0,83989.0,0.1522727]
[1744862979399,0.06687851,83990.0,83989.0,0.1522727]
[1744862979694,0.00317851,83990.0,83989.0,0.1522727]
[1744862980600,0.12224981,83990.0,83989.0,0.1522727]
[1744862982498,0.15514981,83990.0,83989.0,0.1522727]
[1744862987201,0.15414981,83990.0,83989.0,0.1522727]
[1744862987398,0.15514981,83990.0,83989.0,0.1522727]
[1744863005313,0.1190812,83983.0,83982.0,0.3608]
[1744863006018,0.1190812,83983.0,83980.0,0.1786247]
[1744863006019,0.1190854,83981.0,83980.0,0.1786247]
[1744863006415,0.5415854,83981.0,83980.0,0.1786247]
[1744863007220,0.5415854,83981.0,83980.0,0.1806247]
[1744863007615,0.5415854,83981.0,83980.0,0.1796247]
[1744863007919,0.5415854,83981.0,83980.0,0.1806247]
[1744863008511,0.5415854,83981.0,83980.0,0.2123247]
[1744863008712,0.5415854,83981.0,83980.0,0.2113247]
[1744863009522,0.5415854,83981.0,83980.0,0.0922421]
[1744863009922,0.5415854,83981.0,83980.0,0.0912421]
[1744863010219,0.5415854,83981.0,83980.0,0.0922421]
[1744863011217,0.1807854,83981.0,83980.0,0.0922421]
[1744863011514,0.5415854,83981.0,83980.0,0.0922421]
[1744863011717,0.1807854,83981.0,83980.0,0.0922421]
[1744863011916,0.1807854,83981.0,83980.0,0.1249421]
[1744863019830,0.1807854,83981.0,83980.0,0.0922421]
[1744863022430,0.1807854,83981.0,83980.0,0.1244421]
[1744863030138,0.1807854,83981.0,83980.0,0.0922421]
[1744863033848,0.1807854,83981.0,83980.0,0.1224421]
[1744863038648,0.1807854,83981.0,83980.0,0.1524421]
[1744863041755,0.1807854,83981.0,83980.0,0.1224421]
[1744863045354,0.0306,83984.0,83983.0,0.1190812]
[1744863045561,0.1190675,83993.0,83989.0,0.1190727]
[1744863045857,0.1190687,83992.0,83989.0,0.1190727]
[1744863046154,0.11924981,83990.0,83989.0,0.1523727]
[1744863046453,0.11924981,83990.0,83989.0,0.1840727]
[1744863046955,0.1190755,83987.0,83986.0,0.000108]
[1744863047154,0.1190798,83984.0,83983.0,0.0001458]
[1744863047348,0.119084,83981.0,83980.0,0.1190843]
[1744863050060,0.119084,83981.0,83980.0,0.1200843]
[1744863050760,0.119084,83981.0,83980.0,0.001]
[1744863053265,0.119084,83981.0,83980.0,0.1200854]
[1744863053465,0.479884,83981.0,83980.0,0.1200854]
[1744863054062,0.119084,83981.0,83980.0,0.1200854]
[1744863054262,0.479884,83981.0,83980.0,0.1200854]
[1744863054565,0.479884,83981.0,83980.0,0.001]
[1744863054753,0.49176076,83981.0,83980.0,0.001]
[1744863054957,0.49176076,83981.0,83980.0,0.1200854]
[1744863055256,0.49176076,83981.0,83980.0,0.001]
[1744863060169,0.13096076,83981.0,83980.0,0.001]
[1744863060468,0.49176076,83981.0,83980.0,0.001]
[1744863062171,0.49176076,83981.0,83980.0,0.031]
[1744863063767,0.13096076,83981.0,83980.0,0.031]
[1744863064173,0.49176076,83981.0,83980.0,0.031]
[1744863064871,0.13096076,83981.0,83980.0,0.031]
[1744863065272,0.49176076,83981.0,83980.0,0.031]
[1744863065867,0.13096076,83981.0,83980.0,0.031]
[1744863066064,0.49176076,83981.0,83980.0,0.031]
[1744863068276,0.479884,83981.0,83980.0,0.031]
[1744863068669,0.479884,83981.0,83980.0,0.0634]
[1744863068976,0.479884,83981.0,83980.0,0.1824854]
[1744863069979,0.479884,83981.0,83980.0,0.0634]
[1744863070867,0.119084,83981.0,83980.0,0.1824854]
[1744863071069,0.0595406,83983.0,83980.0,0.1229421]
[1744863071372,0.1190819,83983.0,83982.0,0.0595407]
[1744863071881,0.1190819,83983.0,83982.0,0.1224407]
[1744863072479,0.1190787,83985.0,83984.0,0.1786162]
[1744863072876,0.1190787,83985.0,83984.0,0.2415162]
[1744863073074,0.1190787,83985.0,83984.0,0.1224393]
[1744863074379,0.1190787,83985.0,83984.0,0.0629]
[1744863074879,0.1190787,83985.0,83984.0,0.1819798]
[1744863075082,0.1500787,83985.0,83984.0,0.1819798]
[1744863075281,0.1500787,83985.0,83984.0,0.1820598]
[1744863075685,0.1490787,83985.0,83984.0,0.1820598]
[1744863075886,0.1500787,83985.0,83984.0,0.1820598]
[1744863078785,0.1200787,83985.0,83984.0,0.1820598]
[1744863084781,0.1519787,83985.0,83984.0,0.1820598]
[1744863091809,0.1519787,83985.0,83984.0,0.1511598]
[1744863093913,0.0329,83985.0,83984.0,0.1511598]
[1744863094105,0.001,83985.0,83984.0,0.1511598]
[1744863094812,0.0595372,83988.0,83987.0,0.1190755]
[1744863095303,0.0910372,83988.0,83987.0,0.1190755]
[1744863095701,0.1221372,83988.0,83987.0,0.1505755]
[1744863097208,0.1231372,83988.0,83987.0,0.1505755]
[1744863097819,0.1221372,83988.0,83987.0,0.1505755]
[1744863098005,0.1231372,83988.0,83987.0,0.1505755]
[1744863098202,0.1241372,83988.0,83987.0,0.1505755]
[1744863098910,0.1231372,83988.0,83987.0,0.1505755]
[1744863099310,0.1241372,83988.0,83987.0,0.1505755]
[1744863099612,0.0335,83988.0,83987.0,0.1505755]
[1744863099918,0.1210741,83988.0,83987.0,0.1505755]
[1744863100619,0.1850741,83988.0,83987.0,0.1506555]
[1744863100914,0.1850741,83988.0,83987.0,0.1191555]
[1744863101911,0.1840741,83988.0,83987.0,0.1191555]
[1744863102113,0.1850741,83988.0,83987.0,0.1190755]
[1744863102314,0.1850741,83988.0,83987.0,0.1191555]
[1744863111313,0.1850741,83988.0,83987.0,8e-05]
[1744863111911,0.1190812,83983.0,83982.0,0.119082]
[1744863112113,0.0595422,83981.0,83968.0,0.0409]
[1744863112320,0.1190911,83977.0,83975.0,0.0328]
[1744863112513,0.1190911,83977.0,83976.0,0.1786366]
[1744863113614,0.1190911,83977.0,83976.0,0.2399366]
[1744863114022,0.1190911,83977.0,83976.0,0.2409366]
[1744863114919,0.1200911,83977.0,83976.0,0.2439366]
[1744863121823,0.1200911,83977.0,83976.0,0.1248455]
[1744863126025,0.1532911,83977.0,83976.0,0.1248455]
[1744863131029,0.1200911,83977.0,83976.0,0.1248455]
[1744863132431,0.1200911,83977.0,83976.0,0.0635455]
[1744863132638,0.1843911,83977.0,83976.0,0.0635455]
[1744863134235,0.1843911,83977.0,83976.0,0.004]
[1744863134628,0.1843911,83977.0,83976.0,0.03508]
[1744863134831,0.1843911,83977.0,83976.0,0.00408]
[1744863135031,0.19654483,83977.0,83976.0,0.004]
[1744863135231,0.19654483,83977.0,83976.0,0.00408]
[1744863135630,0.55734483,83977.0,83976.0,0.00408]
[1744863136024,0.55734483,83977.0,83976.0,0.004]
[1744863136225,0.55734483,83977.0,83976.0,0.00408]
[1744863139640,0.19654483,83977.0,83976.0,0.00408]
[1744863139841,0.91814483,83977.0,83976.0,0.00408]
[1744863140137,0.1190968,83972.0,83971.0,0.1190982]
[1744863141036,0.1815968,83972.0,83971.0,0.1190982]
[1744863141336,0.1190982,83971.0,83970.0,0.0315]
[1744863141731,0.1822982,83971.0,83970.0,0.0315]
[1744863142542,0.1822982,83971.0,83970.0,0.0335]
[1744863142935,0.1832982,83971.0,83970.0,0.0375]
[1744863145040,0.1200982,83971.0,83970.0,0.1897996]
[1744863154849,0.5446982,83971.0,83970.0,0.1897996]
[1744863155245,0.1838982,83971.0,83970.0,0.1897996]
[1744863155445,0.5446982,83971.0,83970.0,0.1897996]
[1744863155943,0.1838982,83971.0,83970.0,0.1897996]
[1744863156148,0.5446982,83971.0,83970.0,0.1897996]
[1744863156348,0.1838982,83971.0,83970.0,0.1897996]
[1744863156545,0.5446982,83971.0,83970.0,0.1897996]
[1744863160740,0.5134982,83971.0,83970.0,0.1897996]
[1744863169646,0.1526982,83971.0,83970.0,0.1897996]
[1744863169848,0.5134982,83971.0,83970.0,0.1897996]
[1744863170653,0.1526982,83971.0,83970.0,0.1897996]
[1744863170855,0.5134982,83971.0,83970.0,0.1897996]
[1744863171658,0.1526982,83971.0,83970.0,0.1897996]
[1744863171849,0.5134982,83971.0,83970.0,0.1897996]
[1744863172757,0.1526982,83971.0,83970.0,0.1897996]
[1744863173460,0.5134982,83971.0,83970.0,0.1897996]
[1744863174446,0.5134982,83971.0,83970.0,0.0375]